bitfinex/quotes_ETHUSD_20251124
["timestamp","ask_amount","ask_price","bid_price","bid_amount"]
[1764016824190,6.90737504,2986.2,2985.1,0.1889]
[1764016824191,0.2099,2986.1,2985.1,0.1889]
[1764016824392,3.55863752,2986.2,2985.1,4.01745149]
[1764016824706,3.55863752,2986.2,2985.2,0.88034515]
[1764016824707,8.06924877,2986.2,2985.2,0.88034515]
[1764016825360,8.06924877,2986.2,2985.2,0.4786]
[1764016827089,7.85934877,2986.2,2985.2,0.4786]
[1764016827389,0.2099,2986.1,2985.2,0.4786]
[1764016827584,6.69792364,2986.0,2985.2,0.4786]
[1764016827763,3.34896182,2986.0,2985.2,0.4786]
[1764016828092,3.34896182,2986.0,2985.1,0.1889]
[1764016828093,0.35588618,2985.9,2985.1,0.1889]
[1764016829592,6.69837228,2985.8,2985.1,0.1889]
[1764016829763,6.90827228,2985.8,2984.8,0.214]
[1764016829959,0.2099,2985.7,2984.7,0.6779]
[1764016830161,0.69082723,2985.6,2984.7,0.8919]
[1764016830365,0.69082723,2985.6,2984.7,0.1993]
[1764016830781,0.2099,2985.5,2984.4,0.6926]
[1764016830977,0.4239,2985.5,2984.2,0.4786]
[1764016831194,0.4239,2985.5,2983.9,0.1889]
[1764016831195,0.4239,2985.5,2984.0,0.214]
[1764016831491,0.4239,2985.5,2983.9,0.6675]
[1764016831492,0.2099,2985.4,2983.9,0.6675]
[1764016831693,0.72559411,2985.2,2984.0,0.4786]
[1764016831995,1.07748354,2985.1,2984.0,0.4786]
[1764016832158,0.214,2985.0,2984.0,0.4786]
[1764016832363,0.4239,2985.0,2984.0,0.4786]
[1764016832562,0.104,2984.9,2984.0,0.4786]
[1764016833093,0.3139,2984.9,2983.9,0.1889]
[1764016833296,0.2099,2984.8,2983.9,0.1889]
[1764016833800,0.2099,2984.0,2982.9,0.1889]
[1764016833986,0.1288,2983.8,2982.9,0.1889]
[1764016834186,0.3387,2983.8,2982.9,0.1889]
[1764016834510,0.3387,2983.8,2982.8,0.4796]
[1764016834663,0.1288,2983.8,2983.0,0.4786]
[1764016834862,0.1288,2983.8,2983.1,0.03352217]
[1764016835070,0.1288,2983.8,2983.1,0.23282217]
[1764016835698,3.48023106,2983.8,2983.7,0.001]
[1764016836010,3.56530048,2984.0,2983.7,0.001]
[1764016836011,3.35133944,2983.9,2983.7,0.001]
[1764016836913,0.214,2984.7,2983.7,0.001]
[1764016837118,0.2099,2984.4,2983.7,0.001]
[1764016837498,0.2099,2983.8,2983.7,0.001]
[1764016837699,3.56133106,2983.8,2983.7,0.001]
[1764016838093,0.2099,2983.8,2983.7,0.001]
[1764016838294,3.56133106,2983.8,2983.7,0.001]
[1764016838498,5.20908233,2983.8,2983.7,0.001]
[1764016839032,4.99918233,2983.8,2983.7,0.001]
[1764016839322,4.07702517,2983.8,2983.7,0.001]
[1764016839488,4.28692517,2983.8,2983.7,0.001]
[1764016840224,4.49682517,2983.8,2983.7,0.001]
[1764016841835,4.90232917,2983.8,2983.7,0.001]
[1764016842594,4.49682517,2983.8,2983.7,0.001]
[1764016842802,4.28692517,2983.8,2983.7,0.001]
[1764016843012,5.07214971,2983.8,2983.7,0.001]
[1764016843608,5.28204971,2983.8,2983.7,0.001]
[1764016844005,0.99512454,2983.8,2983.7,0.001]
[1764016844202,0.2099,2983.8,2983.7,0.001]
[1764016844651,3.35111018,2984.1,2983.7,0.001]
[1764016844652,0.214,2984.1,2983.7,0.001]
[1764016844803,0.2099,2983.8,2983.7,0.001]
[1764016845941,3.56133106,2983.8,2983.7,0.001]
[1764016847245,0.2099,2983.8,2983.7,0.001]
[1764016847447,3.56133106,2983.8,2983.7,0.001]
[1764016850154,3.77123106,2983.8,2983.7,0.001]
[1764016850451,4.48348646,2983.8,2983.7,0.001]
[1764016850635,5.20908057,2983.8,2983.7,0.001]
[1764016851048,4.99918057,2983.8,2983.7,0.001]
[1764016851230,4.28692517,2983.8,2983.7,0.001]
[1764016851431,4.50092517,2983.8,2983.7,0.001]
[1764016851754,4.71082517,2983.8,2983.7,0.001]
[1764016853149,3.77533106,2983.8,2983.7,0.001]
[1764016853529,4.71082517,2983.8,2983.7,0.001]
[1764016853751,5.51703998,2983.8,2983.7,0.001]
[1764016853956,0.3099,2982.3,2981.1,0.1886]
[1764016854158,0.1348,2982.0,2980.5,0.4591]
[1764016854355,0.1348,2982.0,2980.4,0.4591]
[1764016854356,0.72559411,2981.8,2980.4,0.4591]
[1764016854519,1.51303719,2981.7,2980.4,0.4591]
[1764016855133,1.51303719,2981.7,2980.4,3.81434037]
[1764016855429,1.51303719,2981.7,2980.5,0.4591]
[1764016855631,0.2069,2981.6,2980.5,0.4591]
[1764016857221,6.70803286,2981.5,2980.5,0.4591]
[1764016857521,0.69149329,2981.4,2980.5,0.4591]
[1764016859462,0.54561004,2983.0,2981.3,0.6866]
[1764016859463,0.103,2982.3,2981.3,0.6866]
[1764016859622,1.00831015,2983.1,2981.4,0.9571]
[1764016859623,0.103,2982.4,2981.4,0.9571]
[1764016859953,0.103,2982.4,2981.4,0.713]
[1764016860159,0.103,2982.7,2982.3,0.1886]
[1764016860320,6.70336459,2983.6,2982.3,0.1886]
[1764016860321,0.103,2983.2,2982.3,0.6866]
[1764016860515,0.103,2983.2,2982.6,0.498]
[1764016860951,7.58081827,2983.6,2982.6,0.498]
[1764016861127,0.77958183,2983.5,2982.6,0.9571]
[1764016861333,0.72559411,2983.4,2982.6,0.9571]
[1764016861539,8.20871984,2983.5,2982.7,0.4591]
[1764016861736,4.13134988,2983.5,2982.7,0.4591]
[1764016861935,3.35176805,2983.5,2982.7,0.4591]
[1764016862326,6.7035439,2983.5,2982.7,0.4591]
[1764016862529,3.35176805,2983.5,2982.7,0.4591]
[1764016862727,6.70342022,2983.6,2982.7,0.4591]
[1764016863028,3.35168618,2983.6,2982.7,0.4591]
[1764016863333,6.70342022,2983.6,2982.8,0.38118717]
[1764016863552,6.70342022,2983.6,2982.4,0.72559411]
[1764016863734,0.2069,2983.5,2982.3,4.21579714]
[1764016863923,0.2069,2983.5,2982.3,1.37329411]
[1764016864451,0.2069,2983.5,2982.3,3.5417044]
[1764016864647,0.91943202,2983.5,2982.4,1.17009124]
[1764016865158,0.91943202,2983.5,2982.4,0.71099124]
[1764016865477,0.72559411,2983.2,2982.1,0.1886]
[1764016865768,0.3099,2982.5,2981.8,0.6741]
[1764016865970,0.103,2982.5,2981.8,3.56862433]
[1764016866205,0.103,2982.7,2981.9,0.4591]
[1764016866970,0.3099,2982.7,2981.6,0.72559411]
[1764016867285,0.3099,2982.7,2981.5,1.18469411]
[1764016867473,0.103,2982.7,2981.6,0.4591]
[1764016867679,3.66256704,2982.7,2981.7,0.78926282]
[1764016867989,3.66256704,2982.7,2981.6,0.4591]
[1764016867990,7.01525003,2982.7,2981.6,0.4591]
[1764016868997,3.66256704,2982.7,2981.6,0.4591]
[1764016869396,3.66256704,2982.7,2981.7,6.70758292]
[1764016869397,0.103,2982.7,2981.7,6.70758292]
[1764016869597,3.45566998,2982.7,2981.7,3.35379146]
[1764016869802,6.80833996,2982.7,2981.6,1.18469411]
[1764016870027,7.84511069,2982.7,2981.6,0.4591]
[1764016870216,7.84511069,2982.7,2981.7,0.4591]
[1764016870746,0.2069,2982.6,2981.4,1.18469411]
[1764016870914,0.80520107,2982.5,2981.4,1.99286976]
[1764016871218,0.80520107,2982.5,2981.5,0.4591]
[1764016871580,0.80520107,2982.5,2981.6,6.70780788]
[1764016871811,3.35284972,2982.6,2981.6,6.70780788]
[1764016872029,3.35284972,2982.6,2981.7,0.4591]
[1764016872529,3.35284972,2982.6,2981.7,4.3191]
[1764016873020,6.70569944,2982.6,2981.5,3.35499444]
[1764016873222,1.82856405,2982.5,2981.5,0.001]
[1764016873405,0.2069,2981.6,2981.5,0.001]
[1764016873624,3.56080394,2981.6,2981.5,0.001]
[1764016873918,3.76770394,2981.6,2981.5,0.001]
[1764016874417,0.2069,2981.6,2981.5,0.001]
[1764016874716,3.76770394,2981.6,2981.5,0.001]
[1764016874919,4.47985379,2981.6,2981.5,0.001]
[1764016875281,0.91904985,2981.6,2981.5,0.001]
[1764016875480,3.35370563,2981.8,2981.5,0.001]
[1764016875681,3.35361499,2981.9,2981.5,0.001]
[1764016875914,0.215,2982.0,2981.5,0.001]
[1764016876115,6.92190844,2982.0,2981.5,0.001]
[1764016876307,7.63478928,2982.0,2981.5,0.001]
[1764016877740,7.84168928,2982.0,2981.5,0.001]
[1764016878398,4.28133489,2982.0,2981.5,0.001]
[1764016880027,7.63478928,2982.0,2981.5,0.001]
[1764016880425,0.2069,2981.6,2981.5,0.001]
[1764016880593,0.2069,2981.9,2981.5,0.001]
[1764016880792,0.78416893,2981.8,2981.5,0.001]
[1764016880996,0.215,2982.0,2981.5,0.001]
[1764016881195,0.215,2982.3,2981.6,0.4771]
[1764016881631,3.5682285,2982.3,2981.5,3.35500321]
[1764016882195,3.5682285,2982.3,2981.5,0.001]
[1764016882412,3.5682285,2982.3,2981.5,3.35500403]
[1764016882613,4.28104299,2982.3,2981.5,3.35500403]
[1764016883039,7.63427149,2982.3,2981.5,0.001]
[1764016883241,4.28104299,2982.3,2981.5,3.35498024]
[1764016883539,7.63427149,2982.3,2981.5,0.001]
[1764016884037,0.76342715,2982.2,2981.5,0.001]
[1764016885361,3.5681218,2982.3,2981.6,0.4771]
[1764016885658,3.56817622,2982.3,2981.6,0.4771]
[1764016885862,3.56817622,2982.3,2981.6,3.83099848]
[1764016886071,0.215,2982.3,2981.6,3.83099848]
[1764016886281,3.56813715,2982.3,2981.7,0.4771]
[1764016887541,7.6133844,2982.3,2981.5,0.001]
[1764016887864,0.9071101,2982.3,2981.5,0.4781]
[1764016888067,3.56784421,2982.6,2981.5,0.4781]
[1764016888288,0.002,2982.7,2982.6,0.4615]
[1764016888428,0.002,2982.7,2982.1,0.1817]
[1764016888865,0.002,2982.7,2981.9,0.4771]
[1764016889879,0.002,2982.7,2982.6,0.4615]
[1764016890080,0.002,2982.7,2982.6,1.1536]
[1764016890233,0.002,2982.7,2982.6,1.559104]
[1764016890659,0.002,2982.7,2982.6,1.344104]
[1764016890934,0.002,2982.7,2982.6,1.559104]
[1764016891966,0.002,2983.0,2982.7,1.13109811]
[1764016892168,0.002,2983.0,2982.9,8.75470447]
[1764016892344,0.002,2983.3,2983.0,1.13109811]
[1764016892546,0.104,2984.9,2983.2,1.048704]
[1764016892743,0.104,2984.9,2983.4,0.405504]
[1764016892744,3.45420776,2984.9,2983.4,0.405504]
[1764016893067,0.34542078,2984.8,2983.4,0.405504]
[1764016893289,0.34542078,2984.8,2983.5,0.4771]
[1764016893444,0.34542078,2984.8,2983.6,0.215]
[1764016893784,0.104,2984.9,2983.8,6.70286212]
[1764016893988,0.104,2984.9,2983.9,1.20269411]
[1764016894388,0.104,2984.9,2984.0,0.4771]
[1764016894585,0.104,2984.9,2984.1,0.215]
[1764016894753,0.104,2984.9,2984.1,0.3967]
[1764016894938,0.104,2984.9,2984.2,0.4771]
[1764016895374,3.45421773,2984.9,2984.2,0.4771]
[1764016895639,0.108,2984.8,2984.1,0.1817]
[1764016895839,0.108,2984.8,2984.2,0.215]
[1764016896194,3.45837035,2984.8,2984.1,0.1817]
[1764016896372,3.45837035,2984.8,2984.3,0.215]
[1764016896736,3.45837035,2984.8,2984.1,0.1817]
[1764016896939,4.13923011,2984.8,2984.2,0.215]
[1764016897172,4.13923011,2984.8,2984.1,0.1817]
[1764016897475,4.13923011,2984.8,2984.1,3.74777361]
[1764016897885,0.108,2984.9,2984.2,0.4771]
[1764016898036,0.108,2984.9,2984.2,3.82804164]
[1764016898479,6.8083984,2984.9,2984.1,0.1817]
[1764016898683,7.0192984,2984.9,2984.2,0.215]
[1764016899036,3.4581981,2984.9,2984.2,0.215]
[1764016899243,3.4581981,2984.9,2984.3,0.4771]
[1764016899984,0.108,2984.9,2984.3,0.4771]
[1764016900140,3.34974709,2985.3,2984.3,3.8279336]
[1764016900455,0.33517471,2985.2,2984.3,7.17880315]
[1764016900669,4.07728394,2985.4,2984.4,0.4771]
[1764016901202,0.002,2985.4,2984.4,0.4771]
[1764016901344,0.002,2985.4,2984.4,1.20269411]
[1764016901539,0.002,2985.4,2985.3,0.6432]
[1764016901759,0.002,2985.4,2985.0,0.3967]
[1764016901967,0.002,2985.4,2985.3,0.4615]
[1764016902375,0.002,2985.4,2985.3,0.9386]
[1764016902876,0.002,2985.4,2985.3,4.71718327]
[1764016903174,0.002,2985.4,2985.3,1.58243618]
[1764016903374,0.002,2985.4,2985.3,1.36743618]
[1764016903543,0.002,2985.4,2985.3,1.58243618]
[1764016903737,0.002,2985.4,2985.3,1.1536]
[1764016904252,0.002,2985.4,2985.3,4.50334709]
[1764016904956,0.002,2985.4,2985.3,1.1536]
[1764016905261,0.002,2985.4,2985.1,0.72559411]
[1764016905468,0.002,2985.4,2985.3,0.215]
[1764016905643,0.002,2985.4,2985.3,0.6765]
[1764016905843,0.002,2985.4,2985.3,1.1536]
[1764016906043,0.002,2985.4,2985.3,0.4615]
[1764016906244,0.002,2985.4,2985.0,0.1817]
[1764016906245,0.2129,2985.4,2985.0,0.1817]
[1764016906444,0.2129,2985.4,2984.1,0.1817]
[1764016906646,0.002,2985.4,2984.6,0.4771]
[1764016906860,0.002,2985.4,2984.7,0.215]
[1764016907057,0.002,2985.4,2984.6,0.4771]
[1764016907480,0.002,2985.4,2984.7,0.215]
[1764016907976,0.002,2985.4,2984.7,0.6869]
[1764016908147,0.002,2985.4,2984.7,0.4719]
[1764016908346,0.407504,2985.4,2984.7,0.4719]
[1764016908554,1.15870934,2985.4,2984.8,0.215]
[1764016909143,1.15870934,2985.4,2984.7,0.4719]
[1764016909346,1.15870934,2985.4,2984.8,0.215]
[1764016910385,3.34974709,2985.3,2984.8,0.215]
[1764016910788,3.34974709,2985.3,2984.8,0.7062]
[1764016911494,6.69949418,2985.3,2984.8,0.7062]
[1764016911688,3.34974709,2985.3,2984.8,0.7062]
[1764016912597,4.50840085,2985.4,2984.8,0.7062]
[1764016912897,7.85809236,2985.4,2984.8,0.7062]
[1764016913096,7.85809236,2985.4,2984.5,4.56740201]
[1764016913301,7.85809236,2985.4,2984.6,0.215]
[1764016913670,7.85809236,2985.4,2984.6,0.7062]
[1764016914092,7.85809236,2985.4,2984.7,4.3512]
[1764016915300,7.85809236,2985.4,2984.8,0.214]
[1764016915507,0.2109,2984.8,2984.7,3.6491]
[1764016915707,10.59076296,2984.8,2983.1,0.1983]
[1764016916006,10.59076296,2984.8,2983.2,0.4912]
[1764016916007,0.405504,2984.5,2983.2,0.4912]
[1764016916802,0.405504,2984.4,2983.2,0.4912]
[1764016917181,0.405504,2984.4,2983.2,3.84329736]
[1764016917382,0.405504,2984.4,2983.3,0.4912]
[1764016917820,0.405504,2984.4,2983.1,0.1983]
[1764016918006,0.72559411,2984.5,2983.2,0.215]
[1764016918007,0.405504,2984.2,2983.2,0.215]
[1764016918202,1.13109811,2984.2,2982.7,0.001]
[1764016918379,0.405504,2984.0,2982.7,0.001]
[1764016918587,0.405504,2984.0,2982.8,0.215]
[1764016918784,10.05395622,2983.9,2982.8,0.215]
[1764016919294,10.05395622,2983.9,2982.7,0.001]
[1764016919523,10.05395622,2983.9,2982.8,0.215]
[1764016919693,0.405504,2983.7,2982.8,0.215]
[1764016920221,0.405504,2983.7,2982.7,0.001]
[1764016921028,0.72559411,2983.4,2982.7,0.001]
[1764016921210,0.620504,2983.3,2982.7,0.001]
[1764016923139,6.70421024,2983.2,2982.7,0.001]
[1764016923289,0.405504,2983.1,2982.7,0.001]
[1764016924414,0.94059411,2983.8,2982.7,0.4922]
[1764016924723,0.405504,2983.7,2982.8,0.03352554]
[1764016924927,0.405504,2983.7,2982.9,0.4912]
[1764016925127,0.405504,2983.5,2982.9,0.4912]
[1764016926934,0.405504,2983.5,2982.7,0.216]
[1764016927132,6.7037608,2983.4,2982.7,0.216]
[1764016927434,0.405504,2983.3,2982.7,0.216]
[1764016927593,0.405504,2983.3,2982.7,0.001]
[1764016929130,0.405504,2983.4,2982.8,0.4912]
[1764016930232,0.405504,2983.4,2982.8,0.7062]
[1764016930605,0.405504,2983.4,2982.8,0.4912]
[1764016930923,0.405504,2983.4,2982.7,0.216]
[1764016931124,3.75747529,2983.4,2982.8,0.4912]
[1764016931327,7.10944658,2983.4,2982.8,0.4912]
[1764016931841,3.75747529,2983.4,2982.8,0.4912]
[1764016932024,3.75747529,2983.4,2982.8,0.89728641]
[1764016932220,3.75747529,2983.4,2982.9,0.03352442]
[1764016932539,3.75747529,2983.4,2982.9,0.52472442]
[1764016933190,7.10944658,2983.4,2982.9,0.4912]
[1764016933390,7.10944658,2983.4,2982.7,0.216]
[1764016933820,3.75747529,2983.4,2982.7,0.216]
[1764016934029,7.10944658,2983.4,2982.7,0.4087]
[1764016934196,7.10944658,2983.4,2982.7,0.216]
[1764016934796,7.10944658,2983.4,2982.7,4.076]
[1764016935992,7.10944658,2983.4,2982.8,0.4912]
[1764016936317,7.10944658,2983.4,2982.7,3.861]
[1764016936510,10.46141787,2983.4,2982.7,3.861]
[1764016936701,0.405504,2983.2,2982.7,3.861]
[1764016937127,3.75769305,2983.2,2982.7,3.861]
[1764016937431,6.70443498,2983.1,2982.7,0.001]
[1764016937937,3.35221749,2983.1,2982.7,0.001]
[1764016938096,6.70443498,2983.1,2982.7,0.001]
[1764016939019,0.405504,2983.0,2982.7,0.001]
[1764016939228,6.7048845,2982.9,2982.7,0.001]
[1764016939395,0.405504,2982.8,2982.7,0.001]
[1764016939596,3.35232995,2983.0,2982.7,0.001]
[1764016939796,0.7109939,2983.1,2982.7,0.001]
[1764016939797,0.405504,2983.1,2982.7,0.001]
[1764016939996,0.215,2983.7,2982.7,0.001]
[1764016940235,0.215,2983.7,2982.8,0.4639]
[1764016940236,1.09948873,2983.6,2982.8,0.4639]
[1764016940399,0.405504,2983.5,2982.8,0.4639]
[1764016941207,0.405504,2983.3,2982.7,0.001]
[1764016941415,0.405504,2983.3,2982.7,0.4649]
[1764016941739,0.405504,2983.3,2982.7,0.6799]
[1764016941909,0.405504,2983.3,2982.7,0.71342667]
[1764016942113,0.405504,2983.3,2982.7,0.6799]
[1764016942311,3.35180707,2983.5,2982.8,0.4639]
[1764016942533,3.35171159,2983.6,2982.8,0.4639]
[1764016942738,0.405504,2983.5,2982.8,0.4639]
[1764016943199,3.3518804,2983.4,2982.8,0.4639]
[1764016944621,3.3518804,2983.4,2982.9,0.215]
[1764016944824,3.72781884,2983.4,2982.9,0.215]
[1764016945229,3.72781884,2983.4,2982.9,0.6789]
[1764016945606,7.07969924,2983.4,2982.9,0.6789]
[1764016945837,7.07969924,2983.4,2982.7,0.001]
[1764016946137,7.07969924,2983.4,2982.8,0.215]
[1764016946346,3.72781884,2983.4,2982.8,0.215]
[1764016946637,7.07969924,2983.4,2982.8,0.215]
[1764016946845,3.72781884,2983.4,2982.8,0.6789]
[1764016947041,7.07969924,2983.4,2982.8,0.4639]
[1764016947250,7.07969924,2983.4,2982.8,0.6789]
[1764016948950,7.07969924,2983.4,2982.8,0.4639]
[1764016949136,0.405504,2983.3,2982.8,0.6779]
[1764016949646,0.405504,2983.3,2982.9,0.4639]
[1764016949647,3.35210512,2983.2,2982.9,0.4639]
[1764016951453,4.10066068,2983.2,2982.9,0.4639]
[1764016951629,3.35210512,2983.2,2982.9,0.4639]
[1764016952357,0.405504,2983.3,2983.1,0.4936]
[1764016952524,0.002,2983.5,2983.2,0.4936]
[1764016952727,0.002,2983.5,2983.4,0.4936]
[1764016953060,0.002,2983.5,2983.4,4.3536]
[1764016953261,0.002,2983.5,2983.4,4.8175]
[1764016954662,0.002,2983.5,2983.4,5.0315]
[1764016954864,0.002,2983.5,2983.4,4.8175]
[1764016955650,0.002,2983.5,2983.4,4.3536]
[1764016956937,0.002,2983.5,2982.8,0.1858]
[1764016957563,6.7037608,2983.4,2982.8,0.1858]
[1764016957749,1.43080912,2983.3,2982.7,0.001]
[1764016957959,0.31417864,2983.2,2982.7,0.001]
[1764016958140,0.405504,2983.1,2982.7,0.001]
[1764016958340,0.214,2983.0,2982.7,0.001]
[1764016958670,0.405504,2982.8,2982.7,0.001]
[1764016958964,0.72559411,2983.4,2982.9,0.4936]
[1764016959164,1.14862729,2983.3,2982.9,0.4936]
[1764016959367,1.14862729,2983.3,2982.9,0.9575]
[1764016959833,3.35210512,2983.2,2982.9,0.9575]
[1764016960273,0.407504,2983.5,2982.7,0.001]
[1764016960474,0.31408853,2983.4,2982.7,0.001]
[1764016960669,0.405504,2983.2,2982.7,0.001]
[1764016961975,3.35221749,2983.1,2982.7,0.001]
[1764016962176,3.75772149,2983.1,2983.0,0.001]
[1764016964013,1.07769059,2983.3,2983.0,0.4946]
[1764016964314,0.72559411,2983.4,2983.0,0.4946]
[1764016964516,0.405504,2983.3,2983.0,0.4946]
[1764016964807,0.405504,2983.4,2983.0,0.001]
[1764016964996,0.405504,2983.4,2983.0,0.4649]
[1764016965200,1.11661034,2983.4,2983.0,0.001]
[1764016966022,0.405504,2983.2,2983.0,0.001]
[1764016968110,3.75772149,2983.1,2983.0,0.001]
[1764016970034,0.405504,2983.1,2983.0,0.9557]
[1764016970233,0.405504,2983.1,2983.0,0.4944]
[1764016970390,3.75772149,2983.1,2983.0,0.001]
[1764016970587,4.46870461,2983.1,2983.0,0.001]
[1764016970828,1.11648712,2983.1,2983.0,0.001]
[1764016971119,4.46870461,2983.1,2983.0,0.001]
[1764016971340,4.46870461,2983.1,2982.7,0.001]
[1764016971341,25.61601372,2983.1,2982.7,0.001]
[1764016971502,8.29623697,2982.8,2982.7,0.001]
[1764016971827,9.33367561,2982.8,2982.7,0.001]
[1764016972128,1.13109811,2982.5,2982.4,0.001]
[1764016972301,0.405504,2982.2,2981.5,0.001]
[1764016972510,7.16513886,2981.8,2981.5,0.001]
[1764016972744,7.16513886,2981.8,2981.3,0.001]
[1764016972745,4.01891011,2981.4,2981.3,0.001]
[1764016973037,1.44206635,2981.4,2981.3,0.001]
[1764016973342,0.71932774,2981.4,2981.3,0.001]
[1764016974190,4.48522704,2981.4,2981.3,0.001]
[1764016974391,4.48522704,2981.4,2980.3,0.001]
[1764016974392,8.94432811,2981.3,2980.3,0.001]
[1764016974623,1.13109811,2981.1,2980.3,0.001]
[1764016974920,1.44376242,2981.1,2980.3,0.001]
[1764016975123,1.13109811,2981.1,2980.3,0.001]
[1764016975424,2.33582181,2981.1,2980.3,0.001]
[1764016975724,1.6102277,2981.1,2980.3,0.001]
[1764016975893,0.405504,2981.1,2980.3,0.001]
[1764016976305,4.48556458,2981.1,2980.3,0.001]
[1764016976925,0.405504,2980.9,2980.3,0.001]
[1764016977121,0.405504,2980.5,2980.3,0.001]
[1764016977323,3.82418611,2980.4,2980.3,0.001]
[1764016977595,1.80007613,2980.4,2980.3,0.001]
[1764016978128,1.34509811,2980.4,2980.3,0.001]
[1764016978295,7.34964043,2980.4,2980.3,0.001]
[1764016978626,7.14602543,2980.4,2980.3,0.001]
[1764016978802,4.48635243,2980.4,2980.3,0.001]
[1764016978989,4.70135243,2980.4,2980.3,0.001]
[1764016979389,3.57025432,2980.4,2980.3,0.4944]
[1764016979627,0.215,2980.4,2980.3,0.9557]
[1764016979832,3.35429259,2981.3,2980.3,0.9557]
[1764016979833,3.35491565,2980.8,2980.3,0.9557]
[1764016980000,0.405504,2980.7,2980.4,0.4613]
[1764016980199,10.51845313,2982.2,2980.7,0.4934]
[1764016980395,2.192224,2981.9,2980.7,0.4934]
[1764016980624,0.405504,2981.7,2980.7,0.9547]
[1764016980826,0.405504,2981.5,2980.3,0.4623]
[1764016981402,0.215,2981.6,2980.3,0.4623]
[1764016981839,0.405504,2981.5,2980.3,0.4623]
[1764016982338,1.13109811,2981.3,2980.3,0.4623]
[1764016982494,0.405504,2981.1,2980.3,0.4623]
[1764016982702,0.405504,2981.1,2980.3,0.001]
[1764016982902,1.13109811,2980.9,2980.3,0.001]
[1764016983196,0.405504,2980.7,2980.3,0.001]
[1764016983448,0.405504,2980.7,2980.3,0.4623]
[1764016983601,0.405504,2980.7,2980.3,0.001]
[1764016984434,1.13109811,2980.5,2980.3,0.001]
[1764016984729,1.40461965,2980.4,2980.3,0.001]
[1764016985642,5.31524376,2980.4,2980.3,0.001]
[1764016986152,4.48477976,2980.4,2980.3,0.001]
[1764016986301,7.72324808,2980.4,2980.3,0.001]
[1764016987219,7.72324808,2980.4,2980.0,0.001]
[1764016987220,1.13109811,2980.3,2980.0,0.001]
[1764016987425,0.405504,2980.1,2980.0,0.001]
[1764016987835,0.620504,2980.1,2980.0,0.001]
[1764016988833,4.7016902,2980.1,2980.0,0.001]
[1764016996948,0.214,2980.1,2980.0,0.001]
[1764016997247,3.56959209,2980.1,2980.0,0.001]
[1764016997448,7.67631566,2980.7,2980.0,0.001]
[1764016997449,10.06407459,2980.9,2980.0,0.9588]
[1764016997611,0.215,2980.8,2980.1,0.6839]
[1764016997927,0.215,2980.8,2980.1,1.1425]
[1764016998129,0.215,2980.8,2980.1,0.6839]
[1764016998349,0.002,2980.4,2980.2,0.4586]
[1764016998828,0.002,2980.4,2980.3,0.4992]
[1764016999207,0.002,2980.4,2980.3,0.9578]
[1764017000408,0.622504,2980.4,2980.3,0.9578]
[1764017000849,0.405504,2980.3,2979.6,0.001]
[1764017001043,0.72559411,2979.7,2978.4,0.001]
[1764017001216,6.71276094,2979.4,2978.5,0.4704]
[1764017001416,2.16478257,2979.3,2978.5,0.4704]
[1764017001637,1.65518846,2979.2,2978.5,0.4704]
[1764017002232,0.71872912,2979.2,2979.1,1.1274]
[1764017002430,0.405504,2979.2,2979.1,1.1274]
[1764017003358,3.7621098,2979.2,2979.1,1.1274]
[1764017004153,0.405504,2979.2,2979.1,1.1274]
[1764017006836,3.35570469,2980.0,2979.1,4.48411847]
[1764017007074,0.31372284,2979.9,2979.2,0.91781185]
[1764017007373,0.216,2980.3,2979.9,0.4754]
[1764017007545,0.405504,2980.2,2980.0,0.4694]
[1764017007753,0.405504,2980.2,2980.1,0.657]
[1764017007952,0.216,2980.3,2980.1,0.657]
[1764017008268,0.216,2980.3,2980.2,0.9448]
[1764017008672,3.9768709,2980.3,2980.2,0.9448]
[1764017009047,0.621504,2980.3,2980.2,0.9448]
[1764017009455,3.9768709,2980.3,2980.2,0.9448]
[1764017009638,0.621504,2980.3,2980.2,0.9448]
[1764017010046,0.002,2980.4,2980.2,0.9448]
[1764017010244,0.002,2980.4,2980.3,0.9448]
[1764017012379,0.405504,2980.3,2980.1,0.1816]
[1764017012551,0.405504,2980.3,2980.1,0.651]
[1764017012881,0.405504,2980.3,2980.2,0.4754]
[1764017013886,3.7608709,2980.3,2980.2,0.4754]
[1764017015196,0.405504,2980.3,2980.2,0.4754]
[1764017015345,3.7608709,2980.3,2980.2,0.4754]
[1764017015785,0.405504,2980.3,2980.2,0.9248]
[1764017015994,0.002,2980.4,2980.2,0.9248]
[1764017016190,0.002,2980.4,2980.3,1.39099351]
[1764017016990,0.002,2980.4,2980.3,0.9448]
[1764017023198,0.002,2980.4,2980.3,4.3001669]
[1764017026001,0.002,2980.4,2980.3,0.9448]
[1764017029871,0.002,2980.4,2980.3,4.3001669]
[1764017030099,0.002,2980.4,2980.3,0.9448]
[1764017031176,0.002,2980.4,2980.1,0.1816]
[1764017031374,0.002,2980.4,2979.9,0.6335]
[1764017031607,0.002,2980.4,2980.0,0.4529]
[1764017031807,0.002,2980.4,2980.3,0.4719]
[1764017034608,0.002,2980.4,2980.3,0.9248]
[1764017041249,0.002,2980.4,2980.3,0.4719]
[1764017041433,0.002,2980.4,2980.0,0.001]
[1764017041632,0.002,2980.4,2980.0,0.4539]
[1764017041836,0.407504,2980.4,2980.0,0.4539]
[1764017042036,0.407504,2980.4,2980.0,0.44816]
[1764017042519,0.407504,2980.4,2980.0,3.803838]